[Event "*** Titled Tuesday Blitz"]
[Site "Chess.com"]
[Date "2021.03.30"]
[Round "2"]
[White "Oglob71"]
[Black "m-garcett"]
[Result "1/2-1/2"]
[WhiteElo "2399"]
[BlackElo "2123"]
[TimeControl "180+1"]
[EndTime "10:16:01 PDT"]
[Termination "Game drawn by repetition"]

1. d4 {[%clk 0:03:00.9]} 1... Nf6 {[%clk 0:02:53.1]} 2. Nf3 {[%clk 0:03:01.2]}
2... g6 {[%clk 0:02:47.9]} 3. c4 {[%clk 0:03:01.5]} 3... Bg7 {[%clk 0:02:41.3]}
4. Nc3 {[%clk 0:03:01.9]} 4... O-O {[%clk 0:02:34.5]} 5. Bg5 {[%clk 0:03:02.2]}
5... d6 {[%clk 0:02:25]} 6. e3 {[%clk 0:03:01.5]} 6... Nbd7 {[%clk 0:02:19]} 7.
h3 {[%clk 0:03:01.4]} 7... c5 {[%clk 0:01:55]} 8. d5 {[%clk 0:03:00.7]} 8... h6
{[%clk 0:01:52.1]} 9. Bf4 {[%clk 0:02:59.5]} 9... Qa5 {[%clk 0:01:48.9]} 10. Nd2
{[%clk 0:02:58.4]} 10... Ne5 {[%clk 0:01:42.5]} 11. Bxe5 {[%clk 0:02:57.2]}
11... dxe5 {[%clk 0:01:43.4]} 12. Bd3 {[%clk 0:02:55]} 12... e6 {[%clk 0:01:37]}
13. O-O {[%clk 0:02:53.1]} 13... exd5 {[%clk 0:01:36.9]} 14. cxd5 {[%clk
0:02:53.3]} 14... Bf5 {[%clk 0:01:31.3]} 15. Nc4 {[%clk 0:02:53.3]} 15... Qd8
{[%clk 0:01:16.8]} 16. e4 {[%clk 0:02:53]} 16... Bd7 {[%clk 0:01:07.4]} 17. Nxe5
{[%clk 0:02:51.8]} 17... Nxd5 {[%clk 0:01:03]} 18. Nxd7 {[%clk 0:02:51.5]} 18...
Nxc3 {[%clk 0:01:03.1]} 19. bxc3 {[%clk 0:02:50.9]} 19... Qxd7 {[%clk
0:01:02.9]} 20. Qb3 {[%clk 0:02:46.9]} 20... Qxd3 {[%clk 0:00:59.4]} 21. Qxb7
{[%clk 0:02:46.2]} 21... Qxc3 {[%clk 0:00:51.7]} 22. Rac1 {[%clk 0:02:45.4]}
22... Qe5 {[%clk 0:00:50.5]} 23. f4 {[%clk 0:02:44.2]} 23... Qd4+ {[%clk
0:00:50.1]} 24. Kh2 {[%clk 0:02:43.5]} 24... a5 {[%clk 0:00:46.3]} 25. e5 {[%clk
0:02:40]} 25... Rab8 {[%clk 0:00:44.7]} 26. Qc7 {[%clk 0:02:39]} 26... Rb2
{[%clk 0:00:43.3]} 27. Qxa5 {[%clk 0:02:34.5]} 27... Qd5 {[%clk 0:00:30.7]} 28.
Rg1 {[%clk 0:02:31.4]} 28... Ra8 {[%clk 0:00:28.9]} 29. Qxc5 {[%clk 0:02:30.9]}
29... Qxc5 {[%clk 0:00:27.3]} 30. Rxc5 {[%clk 0:02:30.4]} 30... Raxa2 {[%clk
0:00:28.2]} 31. Rc3 {[%clk 0:02:25.8]} 31... g5 {[%clk 0:00:27.3]} 32. Kg3
{[%clk 0:02:16.4]} 32... gxf4+ {[%clk 0:00:23.7]} 33. Kxf4 {[%clk 0:02:16.7]}
33... Rxg2 {[%clk 0:00:23]} 34. Rxg2 {[%clk 0:02:16]} 34... Rxg2 {[%clk
0:00:22.9]} 35. h4 {[%clk 0:02:15.3]} 35... h5 {[%clk 0:00:20.6]} 36. Kf5 {[%clk
0:02:14.8]} 36... Rg4 {[%clk 0:00:18.6]} 37. Rc8+ {[%clk 0:02:14.1]} 37... Kh7
{[%clk 0:00:18.5]} 38. Rc7 {[%clk 0:02:14.6]} 38... Rg1 {[%clk 0:00:14]} 39.
Rxf7 {[%clk 0:02:11.8]} 39... Rf1+ {[%clk 0:00:12.9]} 40. Ke6 {[%clk 0:02:12.3]}
40... Rxf7 {[%clk 0:00:10.9]} 41. Kxf7 {[%clk 0:02:12.8]} 41... Bxe5 {[%clk
0:00:11]} 42. Ke6 {[%clk 0:02:13.3]} 42... Bg3 {[%clk 0:00:08.4]} 43. Kf5 {[%clk
0:02:13.8]} 43... Bxh4 {[%clk 0:00:07]} 44. Kf4 {[%clk 0:02:14.2]} 44... Kg6
{[%clk 0:00:07]} 45. Kf3 {[%clk 0:02:14.7]} 45... Kg5 {[%clk 0:00:07.2]} 46. Kg2
{[%clk 0:02:15.2]} 46... Kg4 {[%clk 0:00:07.6]} 47. Kh1 {[%clk 0:02:15.5]} 47...
Kh3 {[%clk 0:00:08]} 48. Kg1 {[%clk 0:02:15.5]} 48... Bg3 {[%clk 0:00:08]} 49.
Kh1 {[%clk 0:02:15.8]} 49... h4 {[%clk 0:00:08.3]} 50. Kg1 {[%clk 0:02:15.5]}
50... Kg4 {[%clk 0:00:08.2]} 51. Kh1 {[%clk 0:02:15.1]} 51... Kh3 {[%clk
0:00:09.1]} 52. Kg1 {[%clk 0:02:14.9]} 52... Kg4 {[%clk 0:00:10]} 53. Kh1 {[%clk
0:02:15.1]} 53... Kh3 {[%clk 0:00:10.9]} 1/2-1/2

[Event "*** Titled Tuesday Blitz"]
[Site "Chess.com"]
[Date "2021.03.30"]
[Round "2"]
[White "GMHess"]
[Black "bilelou"]
[Result "0-1"]
[WhiteElo "2775"]
[BlackElo "2551"]
[TimeControl "180+1"]
[EndTime "10:16:03 PDT"]
[Termination "bilelou won by checkmate"]

1. b3 {[%clk 0:03:00.9]} 1... d5 {[%clk 0:02:51.5]} 2. Bb2 {[%clk 0:03:01.1]}
2... Bg4 {[%clk 0:02:51.7]} 3. h3 {[%clk 0:03:00.6]} 3... Bh5 {[%clk 0:02:51.8]}
4. d3 {[%clk 0:03:01.3]} 4... e6 {[%clk 0:02:50.5]} 5. Nd2 {[%clk 0:03:01.8]}
5... Nd7 {[%clk 0:02:50.1]} 6. Ngf3 {[%clk 0:03:02.2]} 6... c6 {[%clk
0:02:50.2]} 7. g4 {[%clk 0:03:02.5]} 7... Bg6 {[%clk 0:02:49.9]} 8. e3 {[%clk
0:03:03.1]} 8... Ngf6 {[%clk 0:02:48.1]} 9. Qe2 {[%clk 0:03:02.9]} 9... h6
{[%clk 0:02:48.3]} 10. O-O-O {[%clk 0:03:01.4]} 10... a5 {[%clk 0:02:48.7]} 11.
a3 {[%clk 0:02:42.5]} 11... a4 {[%clk 0:02:43.4]} 12. b4 {[%clk 0:02:39.7]}
12... c5 {[%clk 0:02:43.6]} 13. b5 {[%clk 0:02:38.8]} 13... c4 {[%clk
0:02:32.6]} 14. dxc4 {[%clk 0:02:28.6]} 14... Rc8 {[%clk 0:02:22.6]} 15. Nd4
{[%clk 0:01:45.5]} 15... Nb6 {[%clk 0:02:17]} 16. f4 {[%clk 0:01:44.7]} 16...
dxc4 {[%clk 0:01:56.3]} 17. Nb1 {[%clk 0:01:08.6]} 17... Be4 {[%clk 0:01:55.5]}
18. Bg2 {[%clk 0:00:27.7]} 18... Bxg2 {[%clk 0:01:51.3]} 19. Qxg2 {[%clk
0:00:28.6]} 19... c3 {[%clk 0:01:52]} 20. Nxc3 {[%clk 0:00:27.8]} 20... Qc7
{[%clk 0:01:52]} 21. Rd3 {[%clk 0:00:19.3]} 21... Nc4 {[%clk 0:01:48.9]} 22. Nb1
{[%clk 0:00:15]} 22... Nd5 {[%clk 0:01:45.3]} 23. Qe4 {[%clk 0:00:10]} 23... Nd6
{[%clk 0:01:28.8]} 24. Qe5 {[%clk 0:00:06.7]} 24... Be7 {[%clk 0:01:23.4]} 25.
g5 {[%clk 0:00:03.1]} 25... hxg5 {[%clk 0:01:20.1]} 26. fxg5 {[%clk 0:00:04]}
26... Rh5 {[%clk 0:01:19.5]} 27. Rf1 {[%clk 0:00:03.4]} 27... Bf6 {[%clk
0:01:18.7]} 28. Rxf6 {[%clk 0:00:02.7]} 28... gxf6 {[%clk 0:01:18.6]} 29. Nxe6
{[%clk 0:00:02.8]} 29... Qxc2# {[%clk 0:01:17.8]} 0-1

[Event "*** Titled Tuesday Blitz"]
[Site "Chess.com"]
[Date "2021.03.30"]
[Round "2"]
[White "OlifantCZ"]
[Black "doctorcristian"]
[Result "0-1"]
[WhiteElo "2311"]
[BlackElo "2556"]
[TimeControl "180+1"]
[EndTime "10:16:12 PDT"]
[Termination "doctorcristian won by resignation"]

1. c4 {[%clk 0:03:00.9]} 1... g6 {[%clk 0:02:59.5]} 2. g3 {[%clk 0:03:00.1]}
2... Bg7 {[%clk 0:02:58.7]} 3. Bg2 {[%clk 0:03:00.7]} 3... c5 {[%clk 0:02:59]}
4. Nc3 {[%clk 0:03:00.2]} 4... Nc6 {[%clk 0:02:59.3]} 5. e4 {[%clk 0:02:58.5]}
5... e6 {[%clk 0:02:58.7]} 6. Nge2 {[%clk 0:02:58.9]} 6... Nge7 {[%clk
0:02:58.9]} 7. O-O {[%clk 0:02:59.5]} 7... d6 {[%clk 0:02:58.5]} 8. d3 {[%clk
0:02:58.1]} 8... O-O {[%clk 0:02:58]} 9. f4 {[%clk 0:02:58.3]} 9... b6 {[%clk
0:02:55]} 10. g4 {[%clk 0:02:54.5]} 10... f5 {[%clk 0:02:40.1]} 11. exf5 {[%clk
0:02:53.5]} 11... gxf5 {[%clk 0:02:40.1]} 12. g5 {[%clk 0:02:52.8]} 12... Rb8
{[%clk 0:02:38.9]} 13. h4 {[%clk 0:02:51.6]} 13... Nd4 {[%clk 0:02:37.6]} 14.
Be3 {[%clk 0:02:44.9]} 14... Bb7 {[%clk 0:02:37.4]} 15. h5 {[%clk 0:02:42.5]}
15... Bxg2 {[%clk 0:02:36.1]} 16. Kxg2 {[%clk 0:02:42.5]} 16... Qd7 {[%clk
0:02:36.5]} 17. Bxd4 {[%clk 0:02:37.8]} 17... cxd4 {[%clk 0:02:36]} 18. Nb1
{[%clk 0:02:31.2]} 18... e5 {[%clk 0:02:36.4]} 19. Nd2 {[%clk 0:02:28.8]} 19...
e4 {[%clk 0:02:13.8]} 20. dxe4 {[%clk 0:02:28.1]} 20... fxe4 {[%clk 0:02:13.9]}
21. Nxe4 {[%clk 0:02:28.5]} 21... Qc6 {[%clk 0:02:13.1]} 22. Ng3 {[%clk
0:02:27.6]} 22... Nf5 {[%clk 0:02:13.4]} 23. Qd3 {[%clk 0:02:17.8]} 23... Ne3+
{[%clk 0:02:01.5]} 24. Kh3 {[%clk 0:02:03.7]} 24... Nxf1 {[%clk 0:01:59]} 25.
Rxf1 {[%clk 0:02:02.4]} 25... Rbe8 {[%clk 0:01:59.1]} 26. h6 {[%clk 0:01:37.2]}
26... Bh8 {[%clk 0:01:54]} 27. b3 {[%clk 0:01:24.5]} 27... Rf7 {[%clk
0:01:45.5]} 28. f5 {[%clk 0:01:21.8]} 28... Be5 {[%clk 0:01:45]} 29. g6 {[%clk
0:01:13.6]} 29... hxg6 {[%clk 0:01:44]} 30. fxg6 {[%clk 0:01:13.5]} 30... Rxf1
{[%clk 0:01:39.4]} 31. Qxf1 {[%clk 0:01:12.3]} 31... Rf8 {[%clk 0:01:39.5]} 32.
h7+ {[%clk 0:01:04.5]} 32... Kg7 {[%clk 0:01:38.3]} 33. Qxf8+ {[%clk 0:01:03.8]}
33... Kxf8 {[%clk 0:01:37.3]} 34. Ng5 {[%clk 0:00:50.9]} 34... Kg7 {[%clk
0:01:05.5]} 35. Nf7 {[%clk 0:00:46.7]} 35... Qc8+ {[%clk 0:01:04.6]} 36. Kg2
{[%clk 0:00:36.1]} 36... Kxg6 {[%clk 0:01:05]} 0-1

[Event "*** Titled Tuesday Blitz"]
[Site "Chess.com"]
[Date "2021.03.30"]
[Round "2"]
[White "londonkid"]
[Black "ymoy"]
[Result "0-1"]
[WhiteElo "2498"]
[BlackElo "2726"]
[TimeControl "180+1"]
[EndTime "10:16:14 PDT"]
[Termination "ymoy won by checkmate"]

1. d4 {[%clk 0:03:00.9]} 1... Nf6 {[%clk 0:02:59.9]} 2. c4 {[%clk 0:03:00.7]}
2... e6 {[%clk 0:03:00.2]} 3. Nf3 {[%clk 0:03:00.6]} 3... b6 {[%clk 0:03:00.1]}
4. g3 {[%clk 0:03:00.1]} 4... Bb7 {[%clk 0:02:59.7]} 5. Bg2 {[%clk 0:03:00.1]}
5... Be7 {[%clk 0:03:00.3]} 6. O-O {[%clk 0:03:00.5]} 6... O-O {[%clk
0:02:59.9]} 7. Nc3 {[%clk 0:03:01]} 7... d5 {[%clk 0:03:00.1]} 8. Ne5 {[%clk
0:02:58.9]} 8... Na6 {[%clk 0:02:56.5]} 9. Qa4 {[%clk 0:02:49.9]} 9... Qe8
{[%clk 0:02:56.1]} 10. Qb3 {[%clk 0:02:44]} 10... h6 {[%clk 0:02:48]} 11. cxd5
{[%clk 0:02:38]} 11... exd5 {[%clk 0:02:47.1]} 12. Nxd5 {[%clk 0:02:27.9]} 12...
Nxd5 {[%clk 0:02:46.1]} 13. Bxd5 {[%clk 0:02:27.8]} 13... Bxd5 {[%clk 0:02:47]}
14. Qxd5 {[%clk 0:02:28.4]} 14... Rd8 {[%clk 0:02:47.9]} 15. Qc4 {[%clk
0:02:23.6]} 15... b5 {[%clk 0:02:37.1]} 16. Qc6 {[%clk 0:02:13.7]} 16... Nb4
{[%clk 0:02:33.7]} 17. Qxe8 {[%clk 0:02:10.5]} 17... Rfxe8 {[%clk 0:02:34.6]}
18. a3 {[%clk 0:02:09.2]} 18... Nc2 {[%clk 0:02:33]} 19. Rb1 {[%clk 0:02:07.8]}
19... Nxd4 {[%clk 0:02:32.5]} 20. e3 {[%clk 0:02:05.2]} 20... Nb3 {[%clk
0:02:13.4]} 21. Nc6 {[%clk 0:01:58.8]} 21... Rd6 {[%clk 0:02:13.2]} 22. Nd4
{[%clk 0:01:50.5]} 22... Nxd4 {[%clk 0:02:11.5]} 23. exd4 {[%clk 0:01:51.4]}
23... Bf6 {[%clk 0:02:12.2]} 24. Be3 {[%clk 0:01:47.9]} 24... Bxd4 {[%clk
0:02:09.9]} 25. Bxd4 {[%clk 0:01:42.8]} 25... Rxd4 {[%clk 0:02:10.8]} 26. Rbc1
{[%clk 0:01:42.9]} 26... Re7 {[%clk 0:02:07.6]} 27. Rc5 {[%clk 0:01:39.8]} 27...
a6 {[%clk 0:02:05.3]} 28. Rfc1 {[%clk 0:01:39.3]} 28... Re2 {[%clk 0:02:00.2]}
29. R1c2 {[%clk 0:01:12]} 29... Rxc2 {[%clk 0:01:58.7]} 30. Rxc2 {[%clk
0:01:11.8]} 30... Rc4 {[%clk 0:01:59.6]} 31. Rxc4 {[%clk 0:01:06.9]} 31... bxc4
{[%clk 0:02:00.5]} 32. Kf1 {[%clk 0:01:07.3]} 32... f5 {[%clk 0:02:00.8]} 33.
Ke2 {[%clk 0:01:07.7]} 33... Kf7 {[%clk 0:01:58.3]} 34. Ke3 {[%clk 0:01:07.9]}
34... c5 {[%clk 0:01:56.1]} 35. Kd2 {[%clk 0:01:07.3]} 35... Ke6 {[%clk
0:01:55.8]} 36. Kc3 {[%clk 0:00:59.9]} 36... Kd5 {[%clk 0:01:55.5]} 37. f3
{[%clk 0:00:58.6]} 37... h5 {[%clk 0:01:53.5]} 38. h3 {[%clk 0:00:56.8]} 38...
g5 {[%clk 0:01:51.3]} 39. a4 {[%clk 0:00:51.1]} 39... a5 {[%clk 0:01:51.1]} 40.
g4 {[%clk 0:00:40.6]} 40... fxg4 {[%clk 0:01:52]} 41. fxg4 {[%clk 0:00:38.5]}
41... h4 {[%clk 0:01:52.2]} 42. Kd2 {[%clk 0:00:38.8]} 42... Ke4 {[%clk
0:01:42.8]} 43. Kc3 {[%clk 0:00:38.8]} 43... Kf3 {[%clk 0:01:43.5]} 44. Kxc4
{[%clk 0:00:39.2]} 44... Kg3 {[%clk 0:01:44.1]} 45. Kxc5 {[%clk 0:00:38.1]}
45... Kxh3 {[%clk 0:01:44.5]} 46. Kb5 {[%clk 0:00:38.5]} 46... Kxg4 {[%clk
0:01:44.4]} 47. Kxa5 {[%clk 0:00:39.4]} 47... h3 {[%clk 0:01:45.3]} 48. b4
{[%clk 0:00:40.3]} 48... h2 {[%clk 0:01:46.2]} 49. b5 {[%clk 0:00:41.2]} 49...
h1=Q {[%clk 0:01:46.6]} 50. b6 {[%clk 0:00:42.1]} 50... Qa8+ {[%clk 0:01:46.8]}
51. Kb5 {[%clk 0:00:42.7]} 51... Kf5 {[%clk 0:01:45.7]} 52. a5 {[%clk
0:00:43.6]} 52... g4 {[%clk 0:01:40.3]} 53. a6 {[%clk 0:00:44.5]} 53... g3
{[%clk 0:01:40.8]} 54. b7 {[%clk 0:00:45.1]} 54... Qb8 {[%clk 0:01:41.3]} 55.
Kb6 {[%clk 0:00:45]} 55... g2 {[%clk 0:01:41.7]} 56. a7 {[%clk 0:00:45.4]} 56...
g1=Q+ {[%clk 0:01:41.5]} 57. Kc6 {[%clk 0:00:46.1]} 57... Qgxa7 {[%clk
0:01:40.5]} 58. Kd5 {[%clk 0:00:45.6]} 58... Qbxb7+ {[%clk 0:01:40.7]} 59. Kc4
{[%clk 0:00:45.7]} 59... Qa4+ {[%clk 0:01:40.4]} 60. Kc3 {[%clk 0:00:45.9]}
60... Qbb3+ {[%clk 0:01:40.2]} 61. Kd2 {[%clk 0:00:46.8]} 61... Qf4+ {[%clk
0:01:39.3]} 62. Ke2 {[%clk 0:00:46.7]} 62... Qc2+ {[%clk 0:01:39.4]} 63. Ke1
{[%clk 0:00:46.7]} 63... Qff2# {[%clk 0:01:40]} 0-1

[Event "*** Titled Tuesday Blitz"]
[Site "Chess.com"]
[Date "2021.03.30"]
[Round "2"]
[White "Firegrizzly"]
[Black "suneebaker"]
[Result "1-0"]
[WhiteElo "2612"]
[BlackElo "2131"]
[TimeControl "180+1"]
[EndTime "10:16:15 PDT"]
[Termination "Firegrizzly won by resignation"]

1. d4 {[%clk 0:02:55]} 1... e6 {[%clk 0:02:58.7]} 2. Nf3 {[%clk 0:02:55.9]} 2...
f5 {[%clk 0:02:58.4]} 3. g3 {[%clk 0:02:54.9]} 3... Nf6 {[%clk 0:02:58.7]} 4.
Bg2 {[%clk 0:02:55.8]} 4... Be7 {[%clk 0:02:58.8]} 5. b3 {[%clk 0:02:55.7]} 5...
O-O {[%clk 0:02:58.8]} 6. Bb2 {[%clk 0:02:56]} 6... d6 {[%clk 0:02:58.6]} 7.
Nbd2 {[%clk 0:02:55.8]} 7... a5 {[%clk 0:02:56.4]} 8. O-O {[%clk 0:02:55.4]}
8... Nc6 {[%clk 0:02:55.2]} 9. Re1 {[%clk 0:02:55.1]} 9... Ne4 {[%clk
0:02:46.5]} 10. Nxe4 {[%clk 0:02:51.5]} 10... fxe4 {[%clk 0:02:46]} 11. Nd2
{[%clk 0:02:52.4]} 11... d5 {[%clk 0:02:42]} 12. f3 {[%clk 0:02:51.1]} 12...
exf3 {[%clk 0:02:39.9]} 13. exf3 {[%clk 0:02:50.6]} 13... a4 {[%clk 0:02:38.6]}
14. c3 {[%clk 0:02:46.7]} 14... Bf6 {[%clk 0:02:31]} 15. f4 {[%clk 0:02:45.9]}
15... Bd7 {[%clk 0:02:23.3]} 16. Nf3 {[%clk 0:02:45.2]} 16... a3 {[%clk
0:02:20.1]} 17. Bc1 {[%clk 0:02:44.9]} 17... b5 {[%clk 0:02:13]} 18. b4 {[%clk
0:02:41.7]} 18... Qe8 {[%clk 0:02:05.6]} 19. h3 {[%clk 0:02:40.4]} 19... Qg6
{[%clk 0:02:03.2]} 20. Kh2 {[%clk 0:02:39.3]} 20... Ne7 {[%clk 0:01:48.2]} 21.
Ne5 {[%clk 0:02:33.9]} 21... Bxe5 {[%clk 0:01:47.5]} 22. Rxe5 {[%clk 0:02:34.2]}
22... Nf5 {[%clk 0:01:42.8]} 23. Qd3 {[%clk 0:02:29.2]} 23... Nd6 {[%clk
0:01:31.1]} 24. Qxg6 {[%clk 0:02:26.6]} 24... hxg6 {[%clk 0:01:31]} 25. Re2
{[%clk 0:02:18.9]} 25... Nc4 {[%clk 0:01:28.8]} 26. Be3 {[%clk 0:02:17.2]} 26...
Rf6 {[%clk 0:01:04.9]} 27. Rae1 {[%clk 0:02:15]} 27... Kf7 {[%clk 0:01:02.9]}
28. Bc1 {[%clk 0:02:13.4]} 28... Rh8 {[%clk 0:01:00.9]} 29. h4 {[%clk
0:02:11.9]} 29... Ke7 {[%clk 0:00:52.1]} 30. Bxd5 {[%clk 0:02:11.6]} 30... Kd6
{[%clk 0:00:50.2]} 31. Bxc4 {[%clk 0:02:10.7]} 31... bxc4 {[%clk 0:00:49.4]} 32.
Bxa3 {[%clk 0:02:09.1]} 32... Ra8 {[%clk 0:00:49]} 33. Bc1 {[%clk 0:02:08.8]}
33... Bc6 {[%clk 0:00:48.7]} 34. a3 {[%clk 0:02:04.5]} 34... Bd5 {[%clk
0:00:48.5]} 35. Re5 {[%clk 0:02:03.6]} 35... c6 {[%clk 0:00:47.8]} 36. R1e2
{[%clk 0:02:02.8]} 36... Rf7 {[%clk 0:00:47.6]} 37. Ra2 {[%clk 0:02:02.4]} 37...
Rfa7 {[%clk 0:00:46.3]} 38. Rae2 {[%clk 0:01:58.5]} 38... Rf8 {[%clk 0:00:41.7]}
39. Kg1 {[%clk 0:01:55.6]} 39... Rf5 {[%clk 0:00:40.5]} 40. Kf2 {[%clk
0:01:52.1]} 40... Rxe5 {[%clk 0:00:40.1]} 41. dxe5+ {[%clk 0:01:46.6]} 41... Ke7
{[%clk 0:00:39.8]} 42. Ra2 {[%clk 0:01:46.3]} 42... Ra4 {[%clk 0:00:39.6]} 43.
Be3 {[%clk 0:01:46.3]} 43... Kf7 {[%clk 0:00:38.1]} 44. Bc5 {[%clk 0:01:46.2]}
44... Be4 {[%clk 0:00:36.8]} 45. Ke3 {[%clk 0:01:45.7]} 45... Bb1 {[%clk
0:00:36.2]} 46. Ra1 {[%clk 0:01:45.1]} 46... Bc2 {[%clk 0:00:32.5]} 47. Kd4
{[%clk 0:01:45.3]} 47... Bb3 {[%clk 0:00:31.4]} 48. Bd6 {[%clk 0:01:45.3]} 48...
Ra8 {[%clk 0:00:31]} 49. Kc5 {[%clk 0:01:45.8]} 49... Ke8 {[%clk 0:00:21.4]} 50.
Kxc6 {[%clk 0:01:43.1]} 1-0

[Event "*** Titled Tuesday Blitz"]
[Site "Chess.com"]
[Date "2021.03.30"]
[Round "2"]
[White "BozeKat"]
[Black "Politov_Pavel"]
[Result "0-1"]
[WhiteElo "2032"]
[BlackElo "2389"]
[TimeControl "180+1"]
[EndTime "10:16:17 PDT"]
[Termination "Politov_Pavel won by resignation"]

1. Nf3 {[%clk 0:03:00.9]} 1... Nf6 {[%clk 0:02:59.6]} 2. d4 {[%clk 0:02:59.6]}
2... e6 {[%clk 0:02:58.6]} 3. c4 {[%clk 0:02:59.8]} 3... d5 {[%clk 0:02:59.1]}
4. e3 {[%clk 0:02:59.7]} 4... Be7 {[%clk 0:02:49.3]} 5. Nbd2 {[%clk 0:02:59.1]}
5... O-O {[%clk 0:02:48.6]} 6. Bd3 {[%clk 0:02:59.2]} 6... c5 {[%clk 0:02:48.9]}
7. O-O {[%clk 0:02:57.8]} 7... Nc6 {[%clk 0:02:48.6]} 8. b3 {[%clk 0:02:49.3]}
8... a6 {[%clk 0:02:33.8]} 9. Ba3 {[%clk 0:02:44.5]} 9... cxd4 {[%clk 0:02:32]}
10. Bxe7 {[%clk 0:02:43]} 10... Qxe7 {[%clk 0:02:32.9]} 11. exd4 {[%clk
0:02:40.9]} 11... dxc4 {[%clk 0:02:24.9]} 12. bxc4 {[%clk 0:02:38.2]} 12... Nb4
{[%clk 0:02:24.6]} 13. Bb1 {[%clk 0:02:14.2]} 13... b5 {[%clk 0:02:24.3]} 14. a3
{[%clk 0:02:10.1]} 14... Nc6 {[%clk 0:02:22.8]} 15. Ne5 {[%clk 0:02:02.9]} 15...
Nxd4 {[%clk 0:02:15]} 16. Ne4 {[%clk 0:01:36.1]} 16... Rd8 {[%clk 0:02:07.3]}
17. Nxf6+ {[%clk 0:01:27.7]} 17... Qxf6 {[%clk 0:02:04]} 18. Ng4 {[%clk
0:00:51.4]} 18... Qg5 {[%clk 0:01:49.5]} 19. Qd3 {[%clk 0:00:38.7]} 19... Qxg4
{[%clk 0:01:41.7]} 20. Qxh7+ {[%clk 0:00:38.2]} 20... Kf8 {[%clk 0:01:41.5]} 21.
Be4 {[%clk 0:00:30.6]} 21... Rb8 {[%clk 0:01:35]} 22. h3 {[%clk 0:00:20.6]}
22... Qg5 {[%clk 0:01:26.2]} 23. Rfd1 {[%clk 0:00:19.9]} 23... Qh6 {[%clk
0:01:08.3]} 24. Qxh6 {[%clk 0:00:13.2]} 24... gxh6 {[%clk 0:01:09.2]} 25. cxb5
{[%clk 0:00:10.2]} 25... axb5 {[%clk 0:01:09.7]} 26. Rab1 {[%clk 0:00:08.5]}
26... f5 {[%clk 0:01:09.2]} 27. Bc6 {[%clk 0:00:06.7]} 27... Nxc6 {[%clk
0:01:08.2]} 0-1

[Event "*** Titled Tuesday Blitz"]
[Site "Chess.com"]
[Date "2021.03.30"]
[Round "2"]
[White "Artem_Sadovsky"]
[Black "ChelsieMonica"]
[Result "0-1"]
[WhiteElo "2651"]
[BlackElo "2386"]
[TimeControl "180+1"]
[EndTime "10:16:22 PDT"]
[Termination "ChelsieMonica won on time"]

1. c4 {[%clk 0:02:57.7]} 1... Nf6 {[%clk 0:02:54.9]} 2. g3 {[%clk 0:02:54.1]}
2... Nc6 {[%clk 0:02:54.9]} 3. Bg2 {[%clk 0:02:51.2]} 3... g6 {[%clk 0:02:54.6]}
4. b3 {[%clk 0:02:50.3]} 4... Bg7 {[%clk 0:02:55.2]} 5. Bb2 {[%clk 0:02:50.1]}
5... O-O {[%clk 0:02:54.7]} 6. Nf3 {[%clk 0:02:43.2]} 6... d6 {[%clk 0:02:54.9]}
7. d4 {[%clk 0:02:41.5]} 7... Re8 {[%clk 0:02:52.6]} 8. O-O {[%clk 0:02:41.3]}
8... Bf5 {[%clk 0:02:51]} 9. d5 {[%clk 0:02:39.5]} 9... Nb8 {[%clk 0:02:49.9]}
10. Nbd2 {[%clk 0:02:38.4]} 10... a5 {[%clk 0:02:49.5]} 11. Nd4 {[%clk
0:02:24.3]} 11... Bd7 {[%clk 0:02:48]} 12. e4 {[%clk 0:02:23.2]} 12... a4 {[%clk
0:02:47.7]} 13. Qc2 {[%clk 0:02:18.1]} 13... a3 {[%clk 0:02:46.7]} 14. Bc3
{[%clk 0:02:16]} 14... c5 {[%clk 0:02:42.9]} 15. Ne2 {[%clk 0:01:29.8]} 15... b5
{[%clk 0:02:41.7]} 16. Rae1 {[%clk 0:01:27.7]} 16... bxc4 {[%clk 0:02:40.4]} 17.
Nxc4 {[%clk 0:01:15.8]} 17... Bb5 {[%clk 0:02:39.3]} 18. e5 {[%clk 0:00:54.7]}
18... Bxc4 {[%clk 0:02:11.5]} 19. bxc4 {[%clk 0:00:38.6]} 19... dxe5 {[%clk
0:02:09.3]} 20. Bxe5 {[%clk 0:00:38.1]} 20... Ra6 {[%clk 0:02:05]} 21. Nc3
{[%clk 0:00:34.5]} 21... Nbd7 {[%clk 0:02:03.4]} 22. f4 {[%clk 0:00:24.8]} 22...
e6 {[%clk 0:01:39.2]} 23. d6 {[%clk 0:00:21.1]} 23... Rb6 {[%clk 0:01:32.4]} 24.
Nb5 {[%clk 0:00:18.7]} 24... Qb8 {[%clk 0:01:29.2]} 25. h3 {[%clk 0:00:13.5]}
25... Nxe5 {[%clk 0:01:18.7]} 26. fxe5 {[%clk 0:00:13.4]} 26... Nd7 {[%clk
0:01:19.1]} 27. Qc3 {[%clk 0:00:06.2]} 27... Rf8 {[%clk 0:01:17.2]} 28. Kh1
{[%clk 0:00:04.9]} 28... h5 {[%clk 0:01:16.5]} 29. h4 {[%clk 0:00:04.5]} 29...
Rxd6 {[%clk 0:01:04.9]} 0-1

[Event "*** Titled Tuesday Blitz"]
[Site "Chess.com"]
[Date "2021.03.30"]
[Round "2"]
[White "politeplayer"]
[Black "Arvids_Andrejevs"]
[Result "0-1"]
[WhiteElo "2221"]
[BlackElo "2434"]
[TimeControl "180+1"]
[EndTime "10:16:23 PDT"]
[Termination "Arvids_Andrejevs won on time"]

1. e4 {[%clk 0:03:00.9]} 1... e5 {[%clk 0:02:57.9]} 2. Nf3 {[%clk 0:02:58.3]}
2... Nc6 {[%clk 0:02:57.6]} 3. d4 {[%clk 0:02:58.3]} 3... exd4 {[%clk
0:02:57.4]} 4. Bc4 {[%clk 0:02:58.9]} 4... Nf6 {[%clk 0:02:57.2]} 5. O-O {[%clk
0:02:51.6]} 5... Nxe4 {[%clk 0:02:56.5]} 6. Re1 {[%clk 0:02:51.3]} 6... d5
{[%clk 0:02:57]} 7. Bxd5 {[%clk 0:02:49.8]} 7... Qxd5 {[%clk 0:02:57.9]} 8. Nc3
{[%clk 0:02:50.1]} 8... Qh5 {[%clk 0:02:58]} 9. Nxe4 {[%clk 0:02:50.2]} 9... Be6
{[%clk 0:02:58.6]} 10. Bg5 {[%clk 0:02:47.1]} 10... Bb4 {[%clk 0:02:58.1]} 11.
c3 {[%clk 0:02:14]} 11... dxc3 {[%clk 0:02:59]} 12. bxc3 {[%clk 0:02:09.1]}
12... Be7 {[%clk 0:02:58.8]} 13. Bxe7 {[%clk 0:02:01]} 13... Nxe7 {[%clk
0:02:59.7]} 14. Qa4+ {[%clk 0:01:37.5]} 14... b5 {[%clk 0:02:53]} 15. Qa3 {[%clk
0:01:31.4]} 15... Rd8 {[%clk 0:02:33.1]} 16. Nc5 {[%clk 0:01:16.7]} 16... Rd6
{[%clk 0:02:28]} 17. Nxe6 {[%clk 0:01:07.9]} 17... fxe6 {[%clk 0:02:24.3]} 18.
Re5 {[%clk 0:00:59.8]} 18... Qf7 {[%clk 0:02:15.3]} 19. Ng5 {[%clk 0:00:48.9]}
19... Qf6 {[%clk 0:02:12.7]} 20. Qc5 {[%clk 0:00:37.1]} 20... O-O {[%clk
0:02:00.6]} 21. Rae1 {[%clk 0:00:27.2]} 21... Rc6 {[%clk 0:01:44.3]} 22. Qe3
{[%clk 0:00:23.6]} 22... Rxc3 {[%clk 0:01:38.7]} 23. Qd2 {[%clk 0:00:12.2]}
23... Rc6 {[%clk 0:01:30.7]} 24. Rxe6 {[%clk 0:00:09.6]} 24... Rxe6 {[%clk
0:01:30.2]} 25. Rxe6 {[%clk 0:00:09.3]} 25... Qa1+ {[%clk 0:01:28.3]} 26. Re1
{[%clk 0:00:08.4]} 26... Qf6 {[%clk 0:01:28.7]} 27. Ne4 {[%clk 0:00:06.5]} 27...
Qb6 {[%clk 0:01:24.5]} 28. Qe2 {[%clk 0:00:04.8]} 28... Nf5 {[%clk 0:01:22.2]}
29. h3 {[%clk 0:00:04.5]} 29... h6 {[%clk 0:01:22]} 30. Qg4 {[%clk 0:00:03]}
30... Nd4 {[%clk 0:01:20.8]} 31. Ng3 {[%clk 0:00:01.6]} 31... Qf6 {[%clk
0:01:13.6]} 32. Rf1 {[%clk 0:00:01.5]} 32... Qf4 {[%clk 0:01:10.5]} 0-1